bitfinex/quotes_ETHUSD_20220212
["timestamp","ask_amount","ask_price","bid_price","bid_amount"]
[1644626729241,5.07755872,2925.0,2924.7,0.85519]
[1644626729440,5.07755872,2925.0,2924.7,0.86299655]
[1644626730040,0.8552948,2925.0,2924.7,0.86299655]
[1644626730288,4.22226392,2924.8,2924.7,0.86299655]
[1644626730487,4.22226392,2924.8,2924.7,0.85519]
[1644626730688,4.22226392,2924.8,2924.7,0.86299655]
[1644626731696,4.22226392,2924.8,2924.7,0.85519]
[1644626735036,4.22226392,2924.8,2924.7,1.71703481]
[1644626736844,4.22226392,2924.8,2924.7,0.85519]
[1644626737040,4.22226392,2924.8,2924.6,1.71684008]
[1644626737041,4.22226392,2924.8,2924.6,0.86174008]
[1644626737240,2.11113196,2924.8,2924.6,0.86174008]
[1644626737439,2.11113196,2924.7,2924.6,0.86174008]
[1644626737691,2.11113196,2924.7,2924.6,0.85531]
[1644626737889,2.11113196,2924.7,2924.6,0.86174019]
[1644626738890,2.11113196,2924.7,2924.6,0.85531]
[1644626740894,0.5586522,2924.7,2924.6,1.85531]
[1644626741093,0.5586522,2924.7,2924.6,2.73171668]
[1644626741294,0.5586522,2924.7,2924.6,3.03171668]
[1644626741543,0.5586522,2924.7,2924.6,2.73171668]
[1644626741741,0.5586522,2924.7,2924.6,1.73171668]
[1644626742143,0.5586522,2924.7,2924.6,2.03171668]
[1644626742340,0.5586522,2924.7,2924.6,3.03171668]
[1644626742540,2.11113196,2924.9,2924.7,0.85505]
[1644626742739,0.8550644,2925.6,2924.7,1.15505]
[1644626742942,0.5586522,2924.8,2924.7,0.85505]
[1644626743942,0.5586522,2924.8,2924.7,1.7101]
[1644626744342,0.5586522,2924.8,2924.7,2.7101]
[1644626745787,0.5586522,2924.8,2924.7,2.84683]
[1644626746186,0.5586522,2924.8,2924.7,3.14683]
[1644626746388,0.5586522,2924.8,2924.7,1.84683]
[1644626746592,0.5586522,2924.8,2924.7,0.99178]
[1644626748492,2.66978416,2924.8,2924.7,0.99178]
[1644626750942,2.66978416,2924.8,2924.7,0.85505]
[1644626755500,2.11113196,2924.8,2924.7,0.85505]
[1644626755900,2.6685084,2924.8,2924.7,0.85505]
[1644626766945,2.6685084,2924.8,2924.7,1.71017]
[1644626768596,2.6685084,2924.8,2924.7,3.16573703]
[1644626769901,0.00780457,2925.7,2924.8,3.45]
[1644626770105,0.1708,2926.0,2925.1,0.85497]
[1644626770304,10.32,2926.2,2925.1,0.85497]
[1644626770502,0.00780457,2925.7,2925.1,0.85497]
[1644626771304,0.85492,2926.1,2925.5,0.85997314]
[1644626771305,2.7705232,2926.1,2925.5,0.85997314]
[1644626771546,0.00546943,2925.7,2925.5,2.56983314]
[1644626772350,0.1708,2926.7,2925.7,4.304696]
[1644626772647,10.4135,2926.9,2926.5,1.09183854]
[1644626772648,7.0843,2926.9,2926.5,1.09183854]
[1644626772847,0.1708,2927.0,2925.7,5.15923]
[1644626773848,0.1708,2927.0,2925.8,1.0]
[1644626774047,0.1708,2927.0,2926.2,1.00733282]
[1644626774449,1.02548,2927.0,2926.5,0.85461]
[1644626774649,0.1708,2927.0,2926.5,0.85461]
[1644626775295,0.00804536,2926.9,2926.5,0.85461]
[1644626775696,0.1708,2926.8,2926.5,0.85461]
[1644626775903,0.1708,2926.8,2926.5,1.70922]
[1644626776296,0.00804544,2926.8,2926.5,1.70922]
[1644626776496,0.00804544,2926.8,2926.5,0.85461]
[1644626776896,0.00804544,2926.8,2926.6,1.70908]
[1644626777300,0.1708,2927.2,2926.6,2.56365]
[1644626777500,0.1708,2927.2,2927.1,1.02425977]
[1644626777900,0.1708,2927.5,2927.1,1.02425977]
[1644626778303,0.87735,2927.7,2927.1,1.02425977]
[1644626778304,0.1708,2927.6,2927.1,1.02425977]
[1644626778701,0.1708,2927.7,2927.1,1.02425977]
[1644626778957,0.0077883,2927.4,2927.1,1.87875977]
[1644626779348,0.1708,2927.3,2927.1,1.87875977]
[1644626779951,0.00778838,2927.3,2927.1,1.87875977]
[1644626780952,0.1718,2928.1,2927.2,0.85429]
[1644626781155,0.1718,2928.1,2927.4,0.85425]
[1644626781353,0.02181514,2927.8,2927.4,0.85425]
[1644626781556,0.02181514,2927.8,2927.5,0.85425]
[1644626781857,0.02181514,2927.8,2927.6,0.92445504]
[1644626782055,0.1718,2928.1,2927.6,0.92445504]
[1644626782255,0.1718,2928.1,2927.6,2.63290504]
[1644626782455,0.00547217,2927.8,2927.6,2.63290504]
[1644626783392,0.1706,2928.1,2927.6,2.63290504]
[1644626783593,0.00781094,2927.8,2927.6,2.63290504]
[1644626784294,0.00781094,2927.8,2927.6,3.48711504]
[1644626784494,0.1706,2928.3,2927.6,3.48711504]
[1644626784694,0.001,2928.5,2927.6,3.48711504]
[1644626784695,0.1706,2928.4,2927.6,3.48711504]
[1644626784894,0.00781094,2927.8,2927.6,3.48711504]
[1644626785695,0.1706,2928.2,2927.6,3.48711504]
[1644626785895,0.1706,2928.3,2927.6,3.48711504]
[1644626786094,0.00780974,2927.8,2927.6,3.48711504]
[1644626786751,0.00780974,2927.8,2927.6,2.63290504]
[1644626786953,0.1716,2928.5,2927.6,2.63290504]
[1644626787154,0.00780974,2927.8,2927.6,2.63290504]
[1644626788153,0.1706,2928.5,2927.6,2.63290504]
[1644626788356,0.00780974,2927.8,2927.6,2.63290504]
[1644626788558,0.00780974,2927.8,2927.7,6.793]
[1644626788559,9.74e-06,2927.8,2927.7,6.793]
[1644626788855,0.03123426,2928.3,2927.8,1.70771026]
[1644626789058,0.001,2928.9,2928.1,3.45]
[1644626789256,0.001,2929.5,2928.5,5.0]
[1644626789455,0.15242046,2929.6,2929.4,0.85190807]
[1644626789654,0.15242046,2929.6,2929.3,0.85384]
[1644626790896,0.15242046,2929.6,2929.4,1.11499151]
[1644626793005,0.15242046,2929.6,2929.4,1.96869151]
[1644626793205,0.16084687,2929.6,2929.4,1.96869151]
[1644626794051,0.1706,2930.2,2929.4,1.96869151]
[1644626794052,0.1706,2930.2,2929.7,2.1]
[1644626794253,0.1706,2930.2,2929.8,0.4706]
[1644626794446,0.1706,2930.2,2929.9,0.493]
[1644626794447,0.02419948,2930.1,2929.9,0.493]
[1644626794645,10.4476,2931.4,2929.9,0.493]
[1644626794646,0.1706,2931.3,2930.0,3.45]
[1644626794847,0.1706,2931.3,2930.0,3.6206]
[1644626795148,0.1706,2931.3,2931.2,0.97944465]
[1644626795347,0.1706,2931.3,2931.2,0.78985048]
[1644626795750,3.5,2931.8,2931.2,0.78985048]
[1644626795751,3.6705,2931.8,2931.2,0.78985048]
[1644626796151,3.6705,2931.8,2930.6,0.85434]
[1644626796552,0.1705,2931.8,2931.3,0.85332]
[1644626796756,1.877311,2931.8,2931.3,0.85332]
[1644626797154,0.1705,2931.8,2931.5,0.8859892]
[1644626797355,0.1705,2931.9,2931.5,0.8859892]
[1644626797554,6.8772,2932.2,2931.5,0.8859892]
[1644626797555,0.1705,2932.1,2931.5,0.8859892]
[1644626797790,0.1705,2932.1,2931.5,1.7391892]
[1644626797990,0.00843001,2931.8,2931.5,1.7391892]
[1644626798991,0.1705,2932.5,2931.5,1.7391892]
[1644626799193,0.1705,2932.6,2931.5,1.7391892]
[1644626799396,0.1705,2932.8,2931.5,1.7391892]
[1644626799594,0.1705,2932.8,2931.6,0.25]
[1644626799795,0.1705,2932.8,2932.0,0.85308]
[1644626800794,0.1705,2932.8,2932.3,1.08963664]
[1644626800994,0.1705,2932.8,2932.3,1.94263664]
[1644626801194,0.1705,2932.8,2932.3,0.853]
[1644626801646,3.73656593,2932.8,2932.3,0.853]
[1644626801847,5.0,2932.6,2931.0,0.25]
[1644626802052,5.0,2932.3,2930.9,3.4123]
[1644626802248,0.86054478,2931.2,2930.7,0.85343]
[1644626802446,0.85346,2931.6,2930.7,0.85343]
[1644626802647,1.70692,2931.9,2930.7,0.85343]
[1644626802648,0.1705,2931.5,2930.7,0.85343]
[1644626802846,0.00842363,2931.1,2930.7,0.85343]
[1644626803747,1.32404,2931.4,2930.7,0.85343]
[1644626803949,0.00842367,2931.0,2930.7,0.85343]
[1644626804147,0.00842367,2931.0,2930.8,1.18901384]
[1644626804347,0.00842367,2931.0,2930.8,2.89582384]
[1644626804949,7.46,2931.6,2930.8,2.89582384]
[1644626805192,0.00842367,2931.0,2930.8,3.14582384]
[1644626805393,0.00842367,2931.0,2930.9,1.91023912]
[1644626806191,4.44055011,2932.0,2930.9,1.91023912]
[1644626806192,1.03907558,2932.0,2930.9,1.91023912]
[1644626806393,0.03368947,2931.5,2931.2,0.85329]
[1644626807201,1.11745551,2931.5,2931.2,0.85329]
[1644626807400,1.08376604,2931.5,2931.2,0.85329]
[1644626807600,1.09218934,2931.5,2931.2,0.85329]
[1644626808600,1.08376604,2931.5,2931.2,0.85329]
[1644626808801,1.09218934,2931.5,2931.2,0.85329]
[1644626809442,1.39218934,2931.5,2931.0,1.70658]
[1644626809845,1.39218934,2931.5,2930.7,1.70691]
[1644626809846,5.70509318,2931.5,2930.7,1.70691]
[1644626810042,0.00599407,2931.4,2930.7,1.70691]
[1644626810242,0.17649407,2931.4,2930.7,1.70691]
[1644626810643,1.03000597,2931.4,2930.9,1.10069811]
[1644626810843,0.17649407,2931.4,2930.9,1.10069811]
[1644626811043,0.1705,2931.4,2930.9,1.10069811]
[1644626811244,0.00599407,2931.3,2930.9,1.10069811]
[1644626811850,0.00599407,2931.3,2930.9,1.95413811]
[1644626812248,6.8836,2932.1,2930.9,1.95413811]
[1644626812249,0.1705,2932.0,2930.9,1.95413811]
[1644626812452,6.8836,2932.1,2930.9,1.95413811]
[1644626812453,0.00842896,2931.2,2930.9,1.95413811]
[1644626812695,0.00842896,2931.2,2931.0,0.8531831]
[1644626813095,0.00842896,2931.2,2931.0,1.8531831]
[1644626813296,6.8836,2932.1,2931.0,0.8531831]
[1644626813497,6.8836,2932.1,2931.3,0.85318]
[1644626813700,0.0337108,2931.7,2931.3,0.85318]
[1644626813900,0.0337108,2931.7,2931.4,0.85314]
[1644626814498,3.0448,2932.1,2931.4,0.85314]
[1644626814698,0.97280153,2931.9,2931.5,1.70625]
[1644626815104,0.00842859,2931.7,2931.5,1.70625]
[1644626815300,0.1705,2931.6,2930.6,0.001]
[1644626815499,0.1705,2931.6,2930.5,3.501]
[1644626815700,3.0448,2932.1,2930.8,0.85341]
[1644626816100,0.00842896,2931.2,2930.8,0.85341]
[1644626816957,3.0448,2932.1,2930.8,0.85341]
[1644626816958,1.91541883,2931.9,2930.9,1.01634841]
[1644626817156,0.03371113,2931.6,2931.2,0.8533]
[1644626818156,1.16529959,2931.8,2931.2,0.8533]
[1644626818357,0.00842871,2931.5,2931.2,0.8533]
[1644626819356,1.7067354,2931.6,2931.2,0.8533]
[1644626819557,0.17892875,2931.5,2931.2,0.8533]
[1644626819758,0.17892875,2931.5,2931.2,0.85184131]
[1644626820599,0.1705,2931.5,2931.2,0.85184131]
[1644626821000,0.17892875,2931.5,2931.2,0.85184131]
[1644626821504,1.03232875,2931.5,2931.2,0.85184131]
[1644626821905,1.0239,2931.5,2931.2,0.85184131]
[1644626822104,0.8534184,2931.4,2931.2,0.85184131]
[1644626822809,0.8534184,2931.4,2931.1,0.001]
[1644626823007,0.99479959,2931.8,2931.2,0.85328]
[1644626823206,0.06263893,2932.0,2931.2,0.85328]
[1644626823405,0.1705,2932.0,2931.2,0.85328]
[1644626823805,0.1705,2932.0,2931.2,1.70646]
[1644626824039,0.1705,2932.0,2931.2,0.85328]
[1644626824243,0.1705,2932.0,2931.2,0.85428]
[1644626824541,3.89803,2932.1,2931.5,0.92867587]
[1644626824741,3.89803,2932.1,2931.5,1.78188587]
[1644626824940,0.1705,2932.2,2931.5,1.78188587]
[1644626825140,3.7533,2932.5,2931.5,1.78288587]
[1644626825141,0.1705,2932.4,2931.5,1.78288587]
[1644626825344,1.23991186,2932.9,2931.6,0.6635]
[1644626825345,0.1705,2932.8,2931.6,0.6635]
[1644626825540,1.23991186,2932.9,2931.6,0.6635]
[1644626825541,0.1705,2932.6,2931.7,0.25]
[1644626825741,0.00595691,2932.0,2931.7,0.25]
[1644626825942,0.00595691,2932.0,2931.9,1.7056433]
[1644626826141,0.0238217,2932.8,2931.9,1.7056433]
[1644626826142,0.0238217,2932.8,2931.9,3.9042933]
[1644626826340,0.0238217,2932.8,2932.1,0.85277]
[1644626826546,0.00391186,2932.9,2932.1,1.34577]
[1644626827046,0.00391186,2932.9,2932.6,1.05584423]
[1644626828291,0.00391186,2932.9,2932.6,1.90867423]
[1644626829695,0.00391186,2932.9,2932.6,2.76147423]
[1644626830596,0.01233398,2932.9,2932.6,2.76147423]
[1644626830797,0.01233398,2932.9,2932.7,0.85274]
[1644626830996,0.05,2933.6,2932.8,3.45]
[1644626831200,0.00782372,2933.5,2932.9,0.85265]
[1644626831461,0.00782372,2933.5,2933.0,0.9631]
[1644626831656,0.00782372,2933.5,2933.1,1.17488239]
[1644626831856,0.00782372,2933.5,2933.2,1.34553]
[1644626832256,0.00782372,2933.5,2933.2,0.85253]
[1644626832657,0.00782372,2933.5,2933.0,0.1701]
[1644626832659,0.1703,2933.4,2933.0,0.1701]
[1644626833459,1.00423626,2933.2,2933.0,0.1701]
[1644626833859,3.78188536,2933.1,2933.0,0.1701]
[1644626834057,3.78188536,2933.1,2933.0,0.17232877]
[1644626834058,0.1703,2933.1,2933.0,0.17232877]
[1644626834257,0.1703,2933.1,2932.2,0.001]
[1644626834258,0.03268137,2932.9,2932.2,0.001]
[1644626834457,0.1705,2932.8,2932.2,0.001]
[1644626834660,0.1705,2932.8,2932.1,0.85307]
[1644626834858,3.4125172,2932.7,2931.9,0.001]
[1644626835058,0.1705,2932.6,2931.6,0.001]
[1644626835296,0.1705,2932.6,2931.4,0.001]
[1644626835699,1.02364,2932.6,2931.4,0.001]
[1644626835898,0.1705,2932.6,2931.7,0.85318]
[1644626836098,0.1705,2932.6,2931.7,0.85418]
[1644626836298,0.1705,2932.7,2931.7,0.85418]
[1644626836502,3.5,2932.8,2932.0,0.0021954]
[1644626836701,4.01910509,2932.9,2932.0,0.0021954]
[1644626836902,0.89039651,2932.3,2932.1,0.85309]
[1644626837703,0.89039651,2932.3,2932.1,0.85528537]
[1644626838103,0.89039651,2932.3,2932.1,0.00219537]
[1644626838305,0.8531194,2932.6,2932.1,0.00219537]
[1644626838503,0.85311,2932.7,2932.1,0.00219537]
[1644626838504,0.8530593,2932.7,2932.1,0.00219537]
[1644626838704,4.18960509,2932.9,2931.9,0.001]
[1644626838951,4.18960509,2932.9,2932.2,0.00731194]
[1644626838952,4.01910509,2932.9,2932.2,0.00731194]
[1644626839143,4.01910509,2932.9,2932.3,0.85296]
[1644626839343,0.95340176,2932.8,2932.3,0.85296]
[1644626839543,0.04050509,2932.9,2932.3,0.85296]
[1644626840146,0.04050509,2932.9,2932.4,0.0073138]
[1644626840347,0.89354509,2932.9,2932.4,0.0073138]
[1644626840545,1.04916983,2932.8,2932.4,0.8602938]
[1644626840950,1.04916983,2932.8,2932.4,0.85298]
[1644626841351,1.04916983,2932.8,2932.5,0.00731367]
[1644626841953,0.04050509,2932.9,2932.5,0.00731367]
[1644626842152,0.04050509,2932.9,2932.4,0.85298]
[1644626842552,0.04050509,2932.9,2932.5,0.00731355]
[1644626842997,0.04050509,2932.9,2932.7,1.18213108]
[1644626843798,0.04050509,2932.9,2932.7,1.18886834]
[1644626844696,0.04050509,2932.9,2932.7,1.18213108]
[1644626844897,0.04050509,2932.9,2932.7,1.18886834]
[1644626845798,0.04050509,2932.9,2932.7,1.18213108]
[1644626845997,0.04050509,2932.9,2932.7,1.18886834]
[1644626846947,0.04050509,2932.9,2932.7,1.18213108]
[1644626847349,0.04050509,2932.9,2932.7,1.18896579]
[1644626847751,0.04050509,2932.9,2932.7,0.00683471]
[1644626848352,0.04050509,2932.9,2932.6,0.85287]
[1644626848550,0.04050509,2932.9,2932.7,0.00683471]
[1644626848951,0.04050509,2932.9,2932.8,0.94731644]
[1644626849352,0.00782372,2932.9,2932.8,0.94731644]
[1644626849551,0.01564744,2932.9,2932.6,0.85287]
[1644626849751,0.01564744,2932.9,2932.7,0.0068346]
[1644626850590,0.01564744,2932.9,2932.6,0.85287]
[1644626850990,0.01564744,2932.9,2932.7,0.00681279]
[1644626851799,0.01564744,2932.9,2932.6,0.85287]
[1644626851999,0.01564744,2932.9,2932.7,0.00681279]
[1644626852600,0.87903735,2932.9,2932.7,0.00681279]
[1644626852800,0.87903735,2932.9,2932.2,1.3464]
[1644626852801,6.87283693,2932.8,2932.2,1.3464]
[1644626853001,6.87283693,2932.8,2932.0,0.001]
[1644626853002,0.91777039,2932.4,2932.0,0.001]
[1644626853202,3.4435296,2932.7,2932.0,0.001]
[1644626853401,3.43680061,2932.7,2932.0,0.001]
[1644626853958,3.43680061,2932.7,2931.9,1.09880177]
[1644626854148,1.02100486,2932.5,2931.9,1.09880177]
[1644626854348,1.87406486,2932.5,2931.7,0.001]
[1644626854549,1.87406486,2932.5,2932.2,0.00681877]
[1644626854550,0.8530873,2932.4,2932.2,0.00681877]
[1644626855351,0.8530873,2932.4,2931.6,0.85406]
[1644626855554,0.8530873,2932.4,2931.8,1.1785366]
[1644626855555,0.8531,2932.3,2931.8,1.1785366]
[1644626855753,0.8531,2932.3,2932.2,0.00681888]
[1644626856559,0.8531,2932.3,2931.7,0.001]
[1644626856560,4.3064884,2932.3,2931.7,0.001]
[1644626856755,0.8531994,2932.2,2931.4,0.001]
[1644626856954,3.53507319,2932.1,2931.4,0.001]
[1644626857155,0.85323,2932.1,2931.3,0.85317]
[1644626857555,0.85323,2932.1,2931.6,0.95862942]
[1644626857796,1.7063999,2932.1,2931.6,0.95862942]
[1644626858200,1.7063999,2932.1,2931.6,0.96543155]
[1644626859001,1.7063999,2932.1,2931.6,0.95862942]
[1644626859207,0.1705,2932.2,2931.7,0.00680178]
[1644626860202,0.1705,2932.2,2931.6,0.95862942]
[1644626860400,1.7062321,2932.3,2931.6,0.95862942]
[1644626860601,1.7062321,2932.3,2931.8,0.00680155]
[1644626860602,0.85313,2932.2,2931.8,0.00680155]
[1644626860801,0.853151,2932.1,2931.8,0.00680155]
[1644626861451,0.853151,2932.1,2931.6,0.95862942]
[1644626861851,1.706321,2932.1,2931.6,0.95862942]
[1644626862348,0.853151,2932.1,2931.6,0.95862942]
[1644626862750,0.1705,2932.0,2931.4,0.001]
[1644626862952,1.70648,2931.9,2931.3,0.001]
[1644626863151,1.70648,2931.9,2931.2,0.1705]
[1644626863152,4.13033175,2931.8,2931.2,0.1705]
[1644626863351,0.9635,2931.8,2931.2,0.1705]
[1644626863551,0.8534,2931.7,2931.2,0.1705]
[1644626863751,0.8534,2931.7,2930.8,0.001]
[1644626863752,1.03695082,2931.6,2930.8,0.001]
[1644626863952,1.03695082,2931.6,2930.0,0.1705]
[1644626863953,5.69047662,2931.6,2930.0,0.1705]
[1644626864151,0.85362,2930.9,2929.9,0.1706]
[1644626864355,0.1706,2931.3,2929.6,0.1716]
[1644626864551,1.7072089,2931.2,2929.6,0.4216]
[1644626864751,0.8536,2931.0,2930.6,1.08071484]
[1644626864951,0.8535396,2930.9,2930.7,0.001]
[1644626865194,0.8536,2930.8,2930.7,0.001]
[1644626866094,0.8535926,2930.7,2930.3,0.00832337]
[1644626866294,0.8535926,2930.7,2929.7,0.001]
[1644626866499,0.8535926,2930.7,2930.6,0.00832238]
[1644626866698,0.8536,2930.8,2930.6,0.00832238]
[1644626866903,0.85351,2931.0,2930.6,0.00832238]
[1644626867199,0.88639791,2931.2,2930.6,0.84599663]
[1644626867399,1.05689791,2931.2,2930.6,0.83767425]
[1644626867699,0.88639791,2931.2,2930.7,0.00832224]
[1644626867900,3.45463847,2931.1,2930.7,0.00832224]
[1644626868098,4.30814847,2931.1,2930.7,0.00832224]
[1644626868700,0.8535278,2931.0,2930.3,5.0]
[1644626868962,1.87759,2931.6,2930.0,0.1705]
[1644626868963,3.6706,2931.9,2930.8,0.00832195]
[1644626869150,0.1706,2932.1,2930.8,0.50132195]
[1644626869351,0.85323,2932.1,2930.8,0.50132195]
[1644626869553,3.6705,2932.0,2930.8,0.50232195]
[1644626869952,0.9085553,2931.6,2931.1,1.17260094]
[1644626870152,3.6705,2932.0,2931.3,0.00832039]
[1644626870454,0.1705,2932.0,2931.3,0.00832039]
[1644626871051,0.1705,2932.0,2931.1,1.17260094]
[1644626871253,0.1705,2932.1,2931.6,0.9332874]
[1644626871657,0.13819996,2932.6,2931.6,0.9332874]
[1644626871658,0.1705,2932.5,2931.6,0.9332874]
[1644626871854,0.13819996,2932.6,2931.6,0.9332874]
[1644626872061,0.13819996,2932.6,2931.5,0.00831982]
[1644626872062,1.02359,2932.5,2931.5,0.00831982]
[1644626872256,1.02359,2932.5,2931.4,0.1705]
[1644626872457,0.85322,2932.4,2932.0,0.00831855]
[1644626872701,0.1705,2932.3,2932.0,0.00831855]
[1644626872900,1.02369,2932.3,2932.0,0.00831855]
[1644626873100,0.96121246,2932.2,2932.0,0.00680165]
[1644626873300,0.1705,2932.1,2932.0,0.00680165]
[1644626873501,0.1705,2932.1,2931.4,0.1705]
[1644626873901,0.1705,2932.1,2931.4,0.1715]
[1644626874202,0.1705,2932.1,2931.4,0.1705]
[1644626874706,0.96121246,2932.2,2931.5,1.72558294]
[1644626874902,0.96121246,2932.2,2931.6,0.85302]
[1644626876103,0.96121246,2932.2,2931.5,0.87349294]
[1644626876306,0.96121246,2932.2,2931.5,0.001]
[1644626876559,0.96121246,2932.2,2931.2,1.7062]
[1644626876760,0.96121246,2932.2,2931.1,0.1715]
[1644626876761,0.96121246,2932.2,2931.3,0.001]
[1644626876958,2.66758106,2932.2,2931.1,0.1715]
[1644626877159,2.66758106,2932.2,2931.2,0.85319]
[1644626877362,2.66758106,2932.2,2931.6,0.00831589]
[1644626877759,0.98565249,2931.7,2931.6,0.00831589]
[1644626878262,3.413009,2932.3,2931.3,0.001]
[1644626878462,0.1705,2932.2,2931.5,0.00831603]
[1644626879260,1.14558348,2932.0,2931.5,0.00831603]
[1644626879460,1.99880128,2932.0,2931.3,0.85417]
[1644626879662,1.14558348,2932.0,2931.7,0.00831546]
[1644626880705,1.14558348,2932.0,2931.3,0.001]
[1644626880906,1.14558348,2932.0,2931.7,0.00831546]
[1644626881807,1.14558348,2932.0,2931.3,0.001]
[1644626882007,1.14558348,2932.0,2931.7,0.00831546]
[1644626883108,1.14558348,2932.0,2931.3,0.001]
[1644626883307,1.31608348,2932.0,2931.7,0.00831546]
[1644626883707,1.14558348,2932.0,2931.7,0.00831546]
[1644626884251,1.14558348,2932.0,2931.3,0.001]
[1644626884453,1.14558348,2932.0,2931.7,0.00831546]
[1644626885354,1.14558348,2932.0,2931.3,0.001]
[1644626885355,3.54838441,2931.9,2931.3,0.001]
[1644626885556,3.54838441,2931.9,2930.9,0.001]
[1644626885557,3.71888441,2931.9,2930.9,0.001]
[1644626885756,0.1705,2931.9,2931.7,0.00831546]
[1644626886757,1.99884098,2932.0,2931.2,0.94139286]
[1644626886758,1.14558348,2932.0,2931.2,0.94139286]
[1644626887056,1.14558348,2932.0,2931.7,0.0083156]
[1644626887900,1.14558348,2932.0,2931.3,0.001]
[1644626888103,1.14558348,2932.0,2931.7,0.00831546]
[1644626888504,3.9206,2932.2,2931.7,0.00831546]
[1644626889105,0.1705,2932.5,2931.3,0.137428]
[1644626889312,0.1705,2932.5,2931.8,0.00831518]
[1644626889505,0.89567618,2932.1,2931.8,0.00831518]
[1644626890308,0.89567618,2932.1,2931.4,0.85311]
[1644626890506,0.89567618,2932.1,2931.8,0.00831518]
[1644626891552,0.89567618,2932.1,2931.3,0.001]
[1644626891754,0.89567618,2932.1,2931.8,0.00831518]
[1644626892753,0.89567618,2932.1,2931.2,0.94139286]
[1644626892957,0.89567618,2932.1,2931.8,0.00831518]
[1644626893357,0.1705,2932.0,2931.8,0.00831518]
[1644626893954,0.1705,2932.0,2931.2,0.94139286]
[1644626894154,0.1705,2932.0,2931.8,0.00831532]
[1644626894554,0.1705,2932.0,2931.8,0.00686421]
[1644626895195,0.1705,2932.0,2931.2,0.94139286]
[1644626896400,0.1705,2932.0,2931.5,0.00831254]
[1644626897502,0.1705,2932.0,2931.1,0.001]
[1644626897702,0.1705,2932.0,2931.6,0.00831212]
[1644626898702,0.1705,2932.0,2931.4,0.001]
[1644626898952,0.1705,2932.0,2931.7,0.00831198]
[1644626899951,0.1705,2932.0,2931.4,0.001]
[1644626900151,0.1705,2932.0,2931.7,0.0083119]
[1644626901055,0.1705,2932.0,2931.4,0.001]
[1644626901258,0.1705,2932.0,2931.7,0.0083119]
[1644626902258,0.1705,2932.0,2931.4,0.001]
[1644626902459,0.89567618,2932.1,2931.7,0.0083119]
[1644626903495,0.89567618,2932.1,2931.4,0.001]
[1644626903697,0.89567618,2932.1,2931.7,0.0083119]
[1644626903897,0.1705,2932.0,2931.7,0.0083119]
[1644626904697,0.1705,2932.0,2931.4,0.001]
[1644626905098,0.1705,2932.0,2931.7,0.0083119]
[1644626905299,0.13819996,2932.6,2931.7,0.0083119]
[1644626905300,0.1705,2932.5,2931.7,0.0083119]
[1644626905500,1.02364,2932.5,2931.7,0.0083119]
[1644626905801,0.6,2932.4,2931.7,0.0083119]
[1644626905998,0.1705,2932.3,2931.4,0.001]
[1644626906202,0.1705,2932.3,2931.7,0.0083119]
[1644626906487,1.15637492,2932.1,2931.7,0.0083119]
[1644626906889,0.1705,2932.0,2931.7,0.0083119]
[1644626907089,0.1705,2932.0,2931.1,0.001]
[1644626907290,0.1705,2932.0,2931.7,0.0083119]
[1644626908289,1.15637492,2932.1,2931.4,0.001]
[1644626908495,1.15637492,2932.1,2931.7,0.0083119]
[1644626909493,1.15637492,2932.1,2931.4,0.001]
[1644626909693,1.15637492,2932.1,2931.7,0.0083119]
[1644626910802,1.15637492,2932.1,2931.4,0.001]
[1644626911007,1.15637492,2932.1,2931.7,0.0083119]
[1644626911804,1.15637492,2932.1,2931.4,0.001]
[1644626912103,0.1705,2932.0,2931.7,0.0083119]
[1644626913005,0.1705,2932.0,2931.5,0.85307]
[1644626913507,0.1705,2932.0,2931.4,0.85407]
[1644626913508,0.1705,2932.0,2931.7,0.0083119]
[1644626913944,1.15637492,2932.1,2931.7,0.0083119]
[1644626914349,1.15637492,2932.1,2931.4,0.001]
[1644626914549,1.15637492,2932.1,2931.7,0.0083119]
[1644626915552,1.15637492,2932.1,2931.4,0.001]
[1644626915751,1.15637492,2932.1,2931.7,0.0083119]
[1644626916153,1.2208,2932.4,2931.7,0.0083119]
[1644626916352,3.2855,2932.7,2931.7,0.0083119]
[1644626916556,3.2855,2932.7,2931.7,0.2583119]
[1644626916755,3.2855,2932.7,2931.7,1.55]
[1644626916954,3.2855,2932.7,2932.0,0.85287]
[1644626917153,0.02406878,2932.9,2932.4,0.89796278]
[1644626917802,0.02406878,2932.9,2932.1,0.1703]
[1644626918002,0.02406878,2932.9,2932.1,0.16918883]
[1644626918003,0.01564744,2932.9,2932.1,0.16918883]
[1644626918197,0.02406969,2932.9,2932.1,0.16918883]
[1644626918703,0.02406969,2932.9,2932.2,0.85286]
[1644626918899,0.19456969,2932.9,2932.3,1.00895241]
[1644626919099,0.18614744,2932.9,2932.3,1.00895241]
[1644626919301,0.19456949,2932.9,2932.3,1.00895241]
[1644626920303,0.18614744,2932.9,2932.3,1.00895241]
[1644626920510,0.19456959,2932.9,2932.3,1.00895241]
[1644626921309,0.02406959,2932.9,2932.3,1.00895241]
[1644626921549,0.02406959,2932.9,2932.4,0.8528]
[1644626921550,0.01564744,2932.9,2932.4,0.8528]
[1644626921750,0.02160455,2932.9,2932.4,0.8528]
[1644626922749,0.01564744,2932.9,2932.4,0.8528]
[1644626922949,0.02409717,2932.9,2932.4,0.8528]
[1644626923954,0.01564744,2932.9,2932.4,0.8528]
[1644626924151,0.02409717,2932.9,2932.4,0.8528]
[1644626925053,0.01564744,2932.9,2932.4,0.8528]
[1644626925295,0.02409717,2932.9,2932.4,0.8528]
[1644626925497,0.02409717,2932.9,2932.8,0.99096806]
[1644626926395,0.01564744,2932.9,2932.8,0.99096806]
[1644626940909,0.01564744,2932.9,2932.8,0.99002439]
[1644626947714,0.01564744,2932.9,2932.8,1.48302439]
[1644626947909,4.744e-05,2932.9,2932.8,1.78302439]
[1644626948208,0.03192761,2933.4,2933.0,0.25]
[1644626948407,0.03192761,2933.4,2933.1,0.493]
[1644626948607,0.03192761,2933.4,2933.1,0.793]
[1644626948806,0.03192761,2933.4,2933.2,0.85247]
[1644626949007,0.03192761,2933.4,2933.3,1.30993189]
[1644626949308,0.00593512,2933.4,2933.3,1.48023189]
[1644626949509,0.00593512,2933.4,2933.3,1.78023189]
[1644626949709,0.00593512,2933.4,2933.3,2.78023189]